[Event "*** Titled Tuesday Blitz"]
[Site "Chess.com"]
[Date "2021.03.02"]
[Round "5"]
[White "kekic76"]
[Black "ApoIogiA"]
[Result "1-0"]
[WhiteElo "2364"]
[BlackElo "2204"]
[TimeControl "180+1"]
[EndTime "10:55:53 PST"]
[Termination "kekic76 won by resignation"]

1. e4 {[%clk 0:03:00.9]} 1... c5 {[%clk 0:02:59.5]} 2. Nf3 {[%clk 0:03:00]} 2...
d6 {[%clk 0:02:59.3]} 3. d4 {[%clk 0:03:00.2]} 3... cxd4 {[%clk 0:03:00.2]} 4.
Nxd4 {[%clk 0:03:00.8]} 4... Nf6 {[%clk 0:03:00.6]} 5. Nc3 {[%clk 0:03:01]} 5...
a6 {[%clk 0:03:01.5]} 6. Bg5 {[%clk 0:03:00.7]} 6... e6 {[%clk 0:03:01.6]} 7. f4
{[%clk 0:03:00.8]} 7... Nbd7 {[%clk 0:03:02]} 8. Qf3 {[%clk 0:03:00.7]} 8... Qc7
{[%clk 0:03:02.1]} 9. O-O-O {[%clk 0:03:00.6]} 9... b5 {[%clk 0:03:02.5]} 10. g4
{[%clk 0:02:59.9]} 10... h6 {[%clk 0:02:52.5]} 11. Bxf6 {[%clk 0:02:59.2]} 11...
Nxf6 {[%clk 0:02:52.2]} 12. Bd3 {[%clk 0:02:58.2]} 12... Nd7 {[%clk 0:02:51.9]}
13. h4 {[%clk 0:02:57.1]} 13... Bb7 {[%clk 0:02:48.5]} 14. g5 {[%clk 0:02:53.6]}
14... e5 {[%clk 0:02:47.5]} 15. Nf5 {[%clk 0:02:51.6]} 15... exf4 {[%clk
0:02:45]} 16. gxh6 {[%clk 0:02:41.6]} 16... gxh6 {[%clk 0:02:38.9]} 17. Qxf4
{[%clk 0:02:24.8]} 17... Ne5 {[%clk 0:02:34.3]} 18. Nd5 {[%clk 0:02:16.4]} 18...
Bxd5 {[%clk 0:02:32.1]} 19. exd5 {[%clk 0:02:16.2]} 19... Rc8 {[%clk 0:02:30]}
20. Be4 {[%clk 0:02:14.5]} 20... Rg8 {[%clk 0:02:03]} 21. Rhg1 {[%clk
0:01:34.6]} 21... Rxg1 {[%clk 0:01:56.4]} 22. Rxg1 {[%clk 0:01:35.5]} 22... Qc4
{[%clk 0:01:49.4]} 23. Rg8 {[%clk 0:01:17.4]} 23... Nd3+ {[%clk 0:01:45.9]} 24.
Kd2 {[%clk 0:01:04.1]} 24... Nxf4 {[%clk 0:01:36.4]} 25. Nxd6+ {[%clk 0:01:04]}
25... Ke7 {[%clk 0:01:29.5]} 26. Nxc4 {[%clk 0:01:03.7]} 26... Rxc4 {[%clk
0:01:24.5]} 27. Bf3 {[%clk 0:00:54.3]} 27... Nxd5 {[%clk 0:01:16.6]} 28. b3
{[%clk 0:00:37.5]} 28... Rd4+ {[%clk 0:01:15.1]} 29. Ke2 {[%clk 0:00:36.4]}
29... Nf6 {[%clk 0:01:14.4]} 30. Rg1 {[%clk 0:00:31.8]} 30... Rxh4 {[%clk
0:01:11.8]} 31. Bb7 {[%clk 0:00:31.5]} 31... Rh2+ {[%clk 0:01:06.2]} 32. Kd3
{[%clk 0:00:29.9]} 32... Nd7 {[%clk 0:01:03.9]} 33. b4 {[%clk 0:00:26.4]} 33...
Kd8 {[%clk 0:00:59.4]} 34. Bxa6 {[%clk 0:00:21.4]} 34... Bxb4 {[%clk 0:00:49.1]}
35. Bxb5 {[%clk 0:00:20.4]} 35... Bc5 {[%clk 0:00:38.8]} 36. Rf1 {[%clk
0:00:16.3]} 36... Ke7 {[%clk 0:00:36.6]} 37. a4 {[%clk 0:00:16.4]} 37... Ne5+
{[%clk 0:00:30.7]} 38. Ke4 {[%clk 0:00:16.6]} 38... Re2+ {[%clk 0:00:29.5]} 39.
Kd5 {[%clk 0:00:16.3]} 39... Ba7 {[%clk 0:00:21.1]} 40. Bxe2 {[%clk 0:00:14.4]}
40... f6 {[%clk 0:00:18.2]} 41. c4 {[%clk 0:00:11.5]} 41... Nf7 {[%clk
0:00:12.1]} 42. c5 {[%clk 0:00:10.5]} 42... Ne5 {[%clk 0:00:11.7]} 43. Rb1
{[%clk 0:00:08.6]} 43... Kd8 {[%clk 0:00:09.2]} 44. Rb7 {[%clk 0:00:08.7]} 44...
Nd3 {[%clk 0:00:06.4]} 45. Bxd3 {[%clk 0:00:07.7]} 1-0

[Event "*** Titled Tuesday Blitz"]
[Site "Chess.com"]
[Date "2021.03.02"]
[Round "5"]
[White "nrvisakh"]
[Black "Kildepiotr"]
[Result "1-0"]
[WhiteElo "2795"]
[BlackElo "2581"]
[TimeControl "180+1"]
[EndTime "10:55:54 PST"]
[Termination "nrvisakh won on time"]

1. d4 {[%clk 0:03:00.9]} 1... Nf6 {[%clk 0:02:58.9]} 2. Bf4 {[%clk 0:03:01.2]}
2... d6 {[%clk 0:02:58.2]} 3. e3 {[%clk 0:03:00.2]} 3... Nbd7 {[%clk 0:02:57.7]}
4. h3 {[%clk 0:02:57.9]} 4... g6 {[%clk 0:02:56.6]} 5. Nf3 {[%clk 0:02:57.4]}
5... Bg7 {[%clk 0:02:56.8]} 6. Be2 {[%clk 0:02:53.3]} 6... O-O {[%clk
0:02:56.7]} 7. O-O {[%clk 0:02:51.5]} 7... b6 {[%clk 0:02:53.4]} 8. c4 {[%clk
0:02:49.3]} 8... Bb7 {[%clk 0:02:53.2]} 9. Nc3 {[%clk 0:02:49.6]} 9... Re8
{[%clk 0:02:52.3]} 10. Bh2 {[%clk 0:02:47.3]} 10... e5 {[%clk 0:02:49.7]} 11. d5
{[%clk 0:02:46.2]} 11... a5 {[%clk 0:02:47.7]} 12. Nd2 {[%clk 0:02:42.2]} 12...
Nc5 {[%clk 0:02:47.2]} 13. b3 {[%clk 0:02:40.7]} 13... Bc8 {[%clk 0:02:41.9]}
14. a3 {[%clk 0:02:38.6]} 14... Bd7 {[%clk 0:02:39.6]} 15. b4 {[%clk 0:02:37.1]}
15... Nb7 {[%clk 0:02:39.5]} 16. Qc2 {[%clk 0:02:26.4]} 16... Qe7 {[%clk
0:02:38.4]} 17. Nb3 {[%clk 0:02:13.4]} 17... Rf8 {[%clk 0:02:34.2]} 18. Rfd1
{[%clk 0:02:08.1]} 18... Ne8 {[%clk 0:02:33.6]} 19. c5 {[%clk 0:01:53.3]} 19...
dxc5 {[%clk 0:02:30.1]} 20. bxc5 {[%clk 0:01:48.8]} 20... Nxc5 {[%clk
0:02:29.1]} 21. d6 {[%clk 0:01:45.1]} 21... cxd6 {[%clk 0:02:21.6]} 22. Nd5
{[%clk 0:01:45]} 22... Qd8 {[%clk 0:02:21.9]} 23. Nxc5 {[%clk 0:01:44]} 23...
bxc5 {[%clk 0:02:19.3]} 24. Rab1 {[%clk 0:01:43.5]} 24... Be6 {[%clk 0:02:10.9]}
25. Bc4 {[%clk 0:01:30.2]} 25... Nf6 {[%clk 0:02:05.2]} 26. Nb6 {[%clk
0:01:24.6]} 26... Rb8 {[%clk 0:02:01.9]} 27. Bxe6 {[%clk 0:01:22.6]} 27... Rxb6
{[%clk 0:02:01.6]} 28. Ba2 {[%clk 0:01:21.6]} 28... Rxb1 {[%clk 0:02:00.5]} 29.
Qxb1 {[%clk 0:01:21.5]} 29... Qc7 {[%clk 0:01:55.1]} 30. Qb5 {[%clk 0:01:21]}
30... Rb8 {[%clk 0:01:52.7]} 31. Qd3 {[%clk 0:01:19.7]} 31... Rb6 {[%clk
0:01:36.4]} 32. Qc3 {[%clk 0:01:16.7]} 32... Ne4 {[%clk 0:01:21.5]} 33. Qc2
{[%clk 0:01:01.6]} 33... Nf6 {[%clk 0:01:12.9]} 34. Qd2 {[%clk 0:01:00.9]} 34...
a4 {[%clk 0:01:06.3]} 35. Qc2 {[%clk 0:00:51.2]} 35... Qc6 {[%clk 0:01:04.9]}
36. Bg3 {[%clk 0:00:46.2]} 36... h5 {[%clk 0:00:55.4]} 37. Qxg6 {[%clk
0:00:42.2]} 37... c4 {[%clk 0:00:51.5]} 38. Qc2 {[%clk 0:00:40.3]} 38... Ne4
{[%clk 0:00:40.9]} 39. Bxc4 {[%clk 0:00:34.5]} 39... Nxg3 {[%clk 0:00:38.8]} 40.
fxg3 {[%clk 0:00:34.5]} 40... Qc5 {[%clk 0:00:33.6]} 41. Qe4 {[%clk 0:00:19.6]}
41... Rc6 {[%clk 0:00:09.9]} 42. Bd5 {[%clk 0:00:19.4]} 42... Rc7 {[%clk
0:00:10.1]} 43. Rf1 {[%clk 0:00:19.4]} 43... Kf8 {[%clk 0:00:04.5]} 44. Kh2
{[%clk 0:00:18.7]} 44... Bh6 {[%clk 0:00:03.9]} 45. Ba2 {[%clk 0:00:15.4]} 45...
Qxe3 {[%clk 0:00:03.4]} 46. Qh7 {[%clk 0:00:12.8]} 1-0

[Event "*** Titled Tuesday Blitz"]
[Site "Chess.com"]
[Date "2021.03.02"]
[Round "5"]
[White "Susal_De_Silva"]
[Black "Natalya_Buksa"]
[Result "0-1"]
[WhiteElo "2650"]
[BlackElo "2506"]
[TimeControl "180+1"]
[EndTime "10:55:59 PST"]
[Termination "Natalya_Buksa won by checkmate"]

1. e4 {[%clk 0:03:00.9]} 1... c5 {[%clk 0:02:59.8]} 2. Nf3 {[%clk 0:03:00.8]}
2... Nc6 {[%clk 0:03:00.3]} 3. Bb5 {[%clk 0:03:00.4]} 3... g6 {[%clk 0:02:59.6]}
4. Bxc6 {[%clk 0:03:00.3]} 4... dxc6 {[%clk 0:02:59.4]} 5. h3 {[%clk 0:02:59.6]}
5... Bg7 {[%clk 0:02:59.5]} 6. d3 {[%clk 0:03:00.2]} 6... Nf6 {[%clk 0:02:59.8]}
7. O-O {[%clk 0:03:00.3]} 7... Nd7 {[%clk 0:02:59.3]} 8. Nc3 {[%clk 0:02:59.2]}
8... e5 {[%clk 0:02:58.9]} 9. Be3 {[%clk 0:02:59.5]} 9... b6 {[%clk 0:02:58.8]}
10. a4 {[%clk 0:02:59]} 10... a5 {[%clk 0:02:49.6]} 11. Nd2 {[%clk 0:02:59.5]}
11... Nf8 {[%clk 0:02:46.7]} 12. f4 {[%clk 0:02:59.6]} 12... exf4 {[%clk
0:02:44.2]} 13. Bxf4 {[%clk 0:03:00.5]} 13... Ne6 {[%clk 0:02:44.5]} 14. Bg3
{[%clk 0:03:01.2]} 14... Ba6 {[%clk 0:02:33.5]} 15. Kh1 {[%clk 0:02:54]} 15...
O-O {[%clk 0:02:23]} 16. e5 {[%clk 0:02:50.3]} 16... f6 {[%clk 0:02:20.6]} 17.
exf6 {[%clk 0:02:41.7]} 17... Rxf6 {[%clk 0:02:04]} 18. Rxf6 {[%clk 0:02:37.2]}
18... Bxf6 {[%clk 0:02:03.5]} 19. Nde4 {[%clk 0:02:37.8]} 19... Bg7 {[%clk
0:02:03.1]} 20. Qg4 {[%clk 0:02:36.9]} 20... Nd4 {[%clk 0:01:56.4]} 21. Bh4
{[%clk 0:02:31.4]} 21... Qc7 {[%clk 0:01:30.6]} 22. Nf6+ {[%clk 0:02:01.9]}
22... Kh8 {[%clk 0:01:28.6]} 23. Nce4 {[%clk 0:01:59.7]} 23... Nxc2 {[%clk
0:01:19.5]} 24. Rc1 {[%clk 0:01:59]} 24... Bxd3 {[%clk 0:00:59.6]} 25. Qf3
{[%clk 0:01:57.3]} 25... Bxe4 {[%clk 0:00:55.6]} 26. Nxe4 {[%clk 0:01:53]} 26...
Nd4 {[%clk 0:00:53.9]} 27. Qd3 {[%clk 0:01:50.9]} 27... Re8 {[%clk 0:00:42.9]}
28. Ng5 {[%clk 0:01:22.2]} 28... Qf4 {[%clk 0:00:36.8]} 29. Rf1 {[%clk
0:01:15.8]} 29... Qxh4 {[%clk 0:00:18.9]} 30. Nf7+ {[%clk 0:00:54.5]} 30... Kg8
{[%clk 0:00:18.9]} 31. Nd6 {[%clk 0:00:52]} 31... Re6 {[%clk 0:00:17.2]} 32. Qc4
{[%clk 0:00:47]} 32... h6 {[%clk 0:00:16.9]} 33. Rd1 {[%clk 0:00:19.7]} 33...
Qe7 {[%clk 0:00:12.1]} 34. Nc8 {[%clk 0:00:14]} 34... Qe8 {[%clk 0:00:12.3]} 35.
Nxb6 {[%clk 0:00:14.5]} 35... Kh7 {[%clk 0:00:11.8]} 36. Qxc5 {[%clk 0:00:14.8]}
36... Nf5 {[%clk 0:00:11.3]} 37. Qxa5 {[%clk 0:00:14.5]} 37... Re2 {[%clk
0:00:08.6]} 38. Kg1 {[%clk 0:00:04.8]} 38... Qe3+ {[%clk 0:00:07.8]} 39. Kh2
{[%clk 0:00:05.7]} 39... Be5+ {[%clk 0:00:07.6]} 40. Kh1 {[%clk 0:00:05.6]}
40... Ng3+ {[%clk 0:00:07.5]} 41. Kh2 {[%clk 0:00:06.5]} 41... Ne4+ {[%clk
0:00:04.5]} 42. Kh1 {[%clk 0:00:06.6]} 42... Ng3+ {[%clk 0:00:04.1]} 43. Kh2
{[%clk 0:00:06.7]} 43... Nf5+ {[%clk 0:00:05]} 44. Kh1 {[%clk 0:00:07.6]} 44...
Qf4 {[%clk 0:00:03.1]} 45. Qa7+ {[%clk 0:00:07.2]} 45... Ng7 {[%clk 0:00:03.1]}
46. Kg1 {[%clk 0:00:05.3]} 46... Qh2+ {[%clk 0:00:02.9]} 47. Kf1 {[%clk
0:00:06.2]} 47... Qxg2# {[%clk 0:00:03.6]} 0-1

[Event "*** Titled Tuesday Blitz"]
[Site "Chess.com"]
[Date "2021.03.02"]
[Round "5"]
[White "KuzubovYuriy"]
[Black "Rud_Makarian"]
[Result "1-0"]
[WhiteElo "2921"]
[BlackElo "2789"]
[TimeControl "180+1"]
[EndTime "10:56:00 PST"]
[Termination "KuzubovYuriy won on time"]

1. d4 {[%clk 0:03:00.9]} 1... Nf6 {[%clk 0:02:48.1]} 2. Nf3 {[%clk 0:03:00.1]}
2... b6 {[%clk 0:02:47.6]} 3. c4 {[%clk 0:02:57.6]} 3... e6 {[%clk 0:02:47.2]}
4. g3 {[%clk 0:02:56.8]} 4... Bb7 {[%clk 0:02:47.3]} 5. Bg2 {[%clk 0:02:56.8]}
5... Be7 {[%clk 0:02:48.2]} 6. Nc3 {[%clk 0:02:56.4]} 6... O-O {[%clk 0:02:47]}
7. Qc2 {[%clk 0:02:53.4]} 7... c5 {[%clk 0:02:42.8]} 8. d5 {[%clk 0:02:45.7]}
8... exd5 {[%clk 0:02:23.3]} 9. Ng5 {[%clk 0:02:41.1]} 9... h6 {[%clk
0:01:37.2]} 10. h4 {[%clk 0:02:39.2]} 10... Na6 {[%clk 0:01:22.6]} 11. cxd5
{[%clk 0:02:39]} 11... Nb4 {[%clk 0:01:19.3]} 12. Qb1 {[%clk 0:02:38.6]} 12...
d6 {[%clk 0:01:16.2]} 13. a3 {[%clk 0:02:34.6]} 13... Na6 {[%clk 0:01:16.3]} 14.
Nce4 {[%clk 0:02:14]} 14... g6 {[%clk 0:00:54.8]} 15. Nh3 {[%clk 0:01:26.1]}
15... Kg7 {[%clk 0:00:48.8]} 16. Nxf6 {[%clk 0:01:04.5]} 16... Bxf6 {[%clk
0:00:49.7]} 17. Bd2 {[%clk 0:01:02.1]} 17... Nc7 {[%clk 0:00:48]} 18. e4 {[%clk
0:01:00.3]} 18... Re8 {[%clk 0:00:47.3]} 19. O-O {[%clk 0:00:59.2]} 19... Qd7
{[%clk 0:00:40.8]} 20. Qc1 {[%clk 0:00:56.4]} 20... h5 {[%clk 0:00:32.8]} 21.
Bc3 {[%clk 0:00:55.6]} 21... Bxc3 {[%clk 0:00:20.8]} 22. bxc3 {[%clk 0:00:53.9]}
22... f6 {[%clk 0:00:21.7]} 23. Nf4 {[%clk 0:00:48.1]} 23... Qf7 {[%clk
0:00:17.5]} 24. c4 {[%clk 0:00:44.3]} 24... Re7 {[%clk 0:00:16.2]} 25. a4 {[%clk
0:00:42.3]} 25... Rae8 {[%clk 0:00:11.6]} 26. Ra3 {[%clk 0:00:37.9]} 26... Na6
{[%clk 0:00:07.4]} 27. a5 {[%clk 0:00:37.1]} 27... Nb4 {[%clk 0:00:07]} 28. axb6
{[%clk 0:00:36.7]} 28... axb6 {[%clk 0:00:07.9]} 29. Ne6+ {[%clk 0:00:34.7]}
29... Kh7 {[%clk 0:00:06.1]} 30. Qd2 {[%clk 0:00:25.9]} 30... Bc8 {[%clk
0:00:05.9]} 31. Bh3 {[%clk 0:00:22.7]} 31... Bxe6 {[%clk 0:00:06.1]} 32. Bxe6
{[%clk 0:00:22.3]} 32... Rxe6 {[%clk 0:00:05.7]} 33. dxe6 {[%clk 0:00:22.4]}
33... Rxe6 {[%clk 0:00:03.6]} 34. Rfa1 {[%clk 0:00:20.2]} 34... Rxe4 {[%clk
0:00:02.7]} 35. Qxd6 {[%clk 0:00:19.9]} 35... Re7 {[%clk 0:00:03.6]} 36. Qxb6
{[%clk 0:00:14.9]} 36... Nc2 {[%clk 0:00:03]} 37. Qxc5 {[%clk 0:00:13.2]} 37...
Nxa3 {[%clk 0:00:03.4]} 38. Qxa3 {[%clk 0:00:13.8]} 38... Rc7 {[%clk 0:00:02.4]}
39. c5 {[%clk 0:00:14.1]} 39... Qe7 {[%clk 0:00:02.9]} 40. Rc1 {[%clk
0:00:13.9]} 40... Rc6 {[%clk 0:00:03.3]} 41. Qc3 {[%clk 0:00:13.4]} 41... Qe4
{[%clk 0:00:03.3]} 42. Qd2 {[%clk 0:00:12.7]} 42... Qe6 {[%clk 0:00:02.2]} 43.
Qd4 {[%clk 0:00:12.1]} 43... Kg7 {[%clk 0:00:02.3]} 44. Rc3 {[%clk 0:00:11.5]}
44... Qc8 {[%clk 0:00:02.3]} 45. Kh2 {[%clk 0:00:10.5]} 45... Qc7 {[%clk
0:00:02.8]} 46. Qd5 {[%clk 0:00:08.8]} 46... Qc8 {[%clk 0:00:02.8]} 47. Re3
{[%clk 0:00:08.6]} 47... Qc7 {[%clk 0:00:01.7]} 48. Re8 {[%clk 0:00:08.6]} 48...
Rxc5 {[%clk 0:00:01.1]} 49. Qg8+ {[%clk 0:00:08.8]} 49... Kh6 {[%clk 0:00:01.6]}
50. Qf8+ {[%clk 0:00:09.5]} 1-0

[Event "*** Titled Tuesday Blitz"]
[Site "Chess.com"]
[Date "2021.03.02"]
[Round "5"]
[White "CraiggoryC"]
[Black "atalz0"]
[Result "1-0"]
[WhiteElo "2279"]
[BlackElo "2465"]
[TimeControl "180+1"]
[EndTime "10:56:00 PST"]
[Termination "CraiggoryC won on time"]

1. e4 {[%clk 0:02:59]} 1... d5 {[%clk 0:02:58.7]} 2. exd5 {[%clk 0:02:58.6]}
2... Nf6 {[%clk 0:02:59.3]} 3. Bb5+ {[%clk 0:02:57.8]} 3... Bd7 {[%clk 0:02:59]}
4. Be2 {[%clk 0:02:58.4]} 4... Nxd5 {[%clk 0:02:58.9]} 5. d4 {[%clk 0:02:59.1]}
5... Bf5 {[%clk 0:02:59.4]} 6. Nf3 {[%clk 0:02:59.1]} 6... e6 {[%clk 0:03:00]}
7. O-O {[%clk 0:02:59.1]} 7... Be7 {[%clk 0:03:00.2]} 8. Nbd2 {[%clk 0:02:55.2]}
8... Nb4 {[%clk 0:02:46.4]} 9. Bb5+ {[%clk 0:02:51.6]} 9... N8c6 {[%clk
0:02:37]} 10. Ba4 {[%clk 0:02:51.7]} 10... O-O {[%clk 0:02:36.7]} 11. c3 {[%clk
0:02:45.6]} 11... Nd3 {[%clk 0:02:30.3]} 12. Bc2 {[%clk 0:02:43.4]} 12... Bg6
{[%clk 0:02:10.6]} 13. Nc4 {[%clk 0:02:30.5]} 13... Nxc1 {[%clk 0:02:08.4]} 14.
Bxg6 {[%clk 0:02:23.2]} 14... hxg6 {[%clk 0:02:09.3]} 15. Rxc1 {[%clk
0:02:22.3]} 15... Bf6 {[%clk 0:02:06.8]} 16. Qe2 {[%clk 0:02:15.5]} 16... Qd5
{[%clk 0:02:02.5]} 17. b3 {[%clk 0:02:09.1]} 17... Rad8 {[%clk 0:01:40.8]} 18.
Ne3 {[%clk 0:02:09]} 18... Qh5 {[%clk 0:01:37.4]} 19. Kh1 {[%clk 0:01:44.3]}
19... g5 {[%clk 0:01:35.4]} 20. g4 {[%clk 0:01:40.9]} 20... Qh6 {[%clk
0:01:26.6]} 21. Nd2 {[%clk 0:01:33.6]} 21... e5 {[%clk 0:01:13.9]} 22. Nf5
{[%clk 0:01:33.3]} 22... Qh7 {[%clk 0:01:10.2]} 23. Ne4 {[%clk 0:01:29.4]} 23...
exd4 {[%clk 0:01:01.9]} 24. cxd4 {[%clk 0:01:15.8]} 24... Nxd4 {[%clk
0:00:56.9]} 25. Nxf6+ {[%clk 0:01:01.9]} 25... gxf6 {[%clk 0:00:57.8]} 26. Nxd4
{[%clk 0:01:02.3]} 26... Rxd4 {[%clk 0:00:57.2]} 27. Rxc7 {[%clk 0:01:03]} 27...
Qh3 {[%clk 0:00:45.5]} 28. Rg1 {[%clk 0:00:56.2]} 28... Kg7 {[%clk 0:00:34.3]}
29. Rxb7 {[%clk 0:00:33.3]} 29... Re8 {[%clk 0:00:27.3]} 30. Qf1 {[%clk
0:00:09.3]} 30... Qf3+ {[%clk 0:00:17.2]} 31. Qg2 {[%clk 0:00:09.5]} 31... Qxg2+
{[%clk 0:00:15.6]} 32. Kxg2 {[%clk 0:00:07.1]} 32... Rxg4+ {[%clk 0:00:12.7]}
33. Kf1 {[%clk 0:00:07.7]} 33... Rxg1+ {[%clk 0:00:11.9]} 34. Kxg1 {[%clk
0:00:08.1]} 34... a5 {[%clk 0:00:08.8]} 35. Rb5 {[%clk 0:00:06.5]} 35... Ra8
{[%clk 0:00:08.8]} 36. a4 {[%clk 0:00:06.2]} 36... Kg6 {[%clk 0:00:08.8]} 37.
Kg2 {[%clk 0:00:06.7]} 37... f5 {[%clk 0:00:09.2]} 38. Kf3 {[%clk 0:00:07]}
38... f6 {[%clk 0:00:09.2]} 39. Ke3 {[%clk 0:00:06.8]} 39... f4+ {[%clk
0:00:08.9]} 40. Kd4 {[%clk 0:00:06.8]} 40... Kh5 {[%clk 0:00:07.3]} 41. Kc5
{[%clk 0:00:05.8]} 41... Kg4 {[%clk 0:00:07]} 42. Kb6 {[%clk 0:00:06.1]} 42...
Kf3 {[%clk 0:00:05.6]} 43. Rxa5 {[%clk 0:00:06.5]} 43... Rb8+ {[%clk 0:00:05.8]}
44. Kc7 {[%clk 0:00:05]} 44... Rxb3 {[%clk 0:00:05.9]} 45. Rf5 {[%clk
0:00:04.7]} 45... Kxf2 {[%clk 0:00:04.8]} 46. Rxf6 {[%clk 0:00:05]} 46... Ra3
{[%clk 0:00:03.1]} 47. Ra6 {[%clk 0:00:05]} 47... Kg2 {[%clk 0:00:02.6]} 48. a5
{[%clk 0:00:04.7]} 48... f3 {[%clk 0:00:02.9]} 49. Kb7 {[%clk 0:00:03.3]} 49...
f2 {[%clk 0:00:02.9]} 50. Rf6 {[%clk 0:00:03.4]} 50... Rxa5 {[%clk 0:00:01.9]}
51. Rg6 {[%clk 0:00:03.9]} 51... f1=Q {[%clk 0:00:01.5]} 52. Rxg5+ {[%clk
0:00:04.4]} 1-0

[Event "*** Titled Tuesday Blitz"]
[Site "Chess.com"]
[Date "2021.03.02"]
[Round "5"]
[White "anon219"]
[Black "wonderfultime"]
[Result "1-0"]
[WhiteElo "2861"]
[BlackElo "2915"]
[TimeControl "180+1"]
[EndTime "10:56:01 PST"]
[Termination "anon219 won on time"]

1. e4 {[%clk 0:03:00.9]} 1... c5 {[%clk 0:02:57.9]} 2. Nf3 {[%clk 0:03:00.7]}
2... Nf6 {[%clk 0:02:58.4]} 3. e5 {[%clk 0:02:57.8]} 3... Nd5 {[%clk 0:02:55.3]}
4. b3 {[%clk 0:02:58.3]} 4... g6 {[%clk 0:02:54.6]} 5. Bb2 {[%clk 0:02:54.9]}
5... Bg7 {[%clk 0:02:54.7]} 6. d4 {[%clk 0:02:50.1]} 6... cxd4 {[%clk
0:02:54.2]} 7. Qxd4 {[%clk 0:02:49.7]} 7... Nb6 {[%clk 0:02:17.1]} 8. Qf4 {[%clk
0:02:37]} 8... Nc6 {[%clk 0:01:58.8]} 9. Nc3 {[%clk 0:02:30.3]} 9... O-O {[%clk
0:01:43.6]} 10. O-O-O {[%clk 0:02:28.1]} 10... Qc7 {[%clk 0:01:22.1]} 11. Qg3
{[%clk 0:02:18]} 11... a6 {[%clk 0:01:10.5]} 12. Ne4 {[%clk 0:02:08.3]} 12...
Nb4 {[%clk 0:01:08.8]} 13. Rd2 {[%clk 0:01:42.8]} 13... a5 {[%clk 0:00:56]} 14.
a3 {[%clk 0:01:21.3]} 14... Nc6 {[%clk 0:00:35.2]} 15. h4 {[%clk 0:01:17]} 15...
h5 {[%clk 0:00:34]} 16. Bd3 {[%clk 0:01:04.4]} 16... a4 {[%clk 0:00:34]} 17. b4
{[%clk 0:01:00.7]} 17... Nd5 {[%clk 0:00:20.2]} 18. Qg5 {[%clk 0:00:45.4]} 18...
Ncxb4 {[%clk 0:00:18.2]} 19. axb4 {[%clk 0:00:43.2]} 19... a3 {[%clk 0:00:18.6]}
20. Ba1 {[%clk 0:00:41.6]} 20... Nxb4 {[%clk 0:00:19.1]} 21. Qxe7 {[%clk
0:00:40.2]} 21... Nxd3+ {[%clk 0:00:17.2]} 22. Rxd3 {[%clk 0:00:39.9]} 22... Ra4
{[%clk 0:00:11.3]} 23. Nf6+ {[%clk 0:00:31.8]} 23... Kh8 {[%clk 0:00:10.5]} 24.
Nd5 {[%clk 0:00:27.9]} 24... Qc6 {[%clk 0:00:08.9]} 25. e6 {[%clk 0:00:28.1]}
25... Bb2+ {[%clk 0:00:04.2]} 26. Kd1 {[%clk 0:00:27.9]} 26... Kg7 {[%clk
0:00:03.4]} 27. Bxb2+ {[%clk 0:00:19.3]} 27... axb2 {[%clk 0:00:04.3]} 28. Qf6+
{[%clk 0:00:19.7]} 28... Kh7 {[%clk 0:00:03.8]} 29. Qxb2 {[%clk 0:00:20.2]}
29... fxe6 {[%clk 0:00:03.4]} 30. Nf6+ {[%clk 0:00:20]} 30... Kh6 {[%clk
0:00:04]} 31. Kd2 {[%clk 0:00:16]} 31... Qc5 {[%clk 0:00:03.7]} 32. Ke2 {[%clk
0:00:14.2]} 32... b6 {[%clk 0:00:03.6]} 33. Rhd1 {[%clk 0:00:13.9]} 33... Ba6
{[%clk 0:00:04]} 34. Qc1+ {[%clk 0:00:13.6]} 34... Kg7 {[%clk 0:00:03.7]} 35.
Nxd7 {[%clk 0:00:14.2]} 35... Bxd3+ {[%clk 0:00:03.6]} 36. Rxd3 {[%clk
0:00:15.1]} 36... Qb4 {[%clk 0:00:03.4]} 37. Nde5 {[%clk 0:00:13.3]} 37... Qe4+
{[%clk 0:00:03.8]} 38. Kf1 {[%clk 0:00:13.7]} 38... Rfa8 {[%clk 0:00:03.4]} 39.
Rd7+ {[%clk 0:00:13.7]} 39... Kg8 {[%clk 0:00:04]} 40. Rd1 {[%clk 0:00:07.8]}
40... Ra1 {[%clk 0:00:02.4]} 41. Qxa1 {[%clk 0:00:07]} 41... Rxa1 {[%clk
0:00:03.3]} 42. Rxa1 {[%clk 0:00:07.6]} 42... Qxc2 {[%clk 0:00:04.1]} 43. Ra8+
{[%clk 0:00:07.6]} 43... Kg7 {[%clk 0:00:04.6]} 44. g3 {[%clk 0:00:08.5]} 44...
b5 {[%clk 0:00:04.6]} 45. Ra7+ {[%clk 0:00:08.3]} 45... Kg8 {[%clk 0:00:04.7]}
46. Nd7 {[%clk 0:00:06]} 46... b4 {[%clk 0:00:03.4]} 47. Nf6+ {[%clk 0:00:05.6]}
47... Kf8 {[%clk 0:00:03.9]} 48. Ng5 {[%clk 0:00:06]} 48... Qc1+ {[%clk
0:00:02.1]} 49. Kg2 {[%clk 0:00:06.1]} 49... Qc6+ {[%clk 0:00:01.1]} 50. Kh2
{[%clk 0:00:06.5]} 1-0